bitfinex/quotes_ETHUSD_20250814
["timestamp","ask_amount","ask_price","bid_price","bid_amount"]
[1755139076675,0.19536118,4749.1,4747.6,3.8334]
[1755139076882,0.19536118,4749.0,4747.6,3.8334]
[1755139077061,0.19536118,4748.9,4747.6,3.8334]
[1755139077262,0.19536118,4749.4,4747.6,3.8334]
[1755139077458,0.19536118,4749.3,4747.7,13.146166]
[1755139077658,0.9282,4749.9,4747.5,5.043]
[1755139077854,0.19536118,4749.8,4747.6,3.675]
[1755139078164,0.19536118,4749.8,4747.6,3.8254]
[1755139078379,0.9282,4749.9,4747.7,0.1504]
[1755139078972,0.19543031,4750.2,4747.9,29.2754529]
[1755139079193,0.9282,4750.6,4748.0,3.8234]
[1755139079376,0.9282,4750.6,4748.1,3.8334]
[1755139079574,0.9282,4750.6,4748.2,0.53374]
[1755139079888,0.9282,4750.6,4748.3,19.022821]
[1755139080090,0.9282,4750.6,4748.5,8.978869]
[1755139080299,0.9282,4750.6,4748.6,0.1504]
[1755139080511,0.9282,4751.2,4748.7,3.68]
[1755139080788,0.56355609,4752.1,4747.5,5.043]
[1755139080789,1.12363031,4751.1,4747.8,0.1504]
[1755139080992,1.6871864,4751.0,4747.9,3.695]
[1755139081182,0.56355609,4750.8,4748.0,3.695]
[1755139081503,14.5,4750.6,4748.1,3.695]
[1755139081812,14.5,4750.6,4747.5,5.043]
[1755139081813,3.19270285,4750.5,4748.2,3.695]
[1755139081962,0.19549201,4750.4,4748.2,3.695]
[1755139082162,0.19549201,4750.3,4748.2,3.695]
[1755139082376,1.12369201,4750.2,4748.2,3.695]
[1755139082558,15.62369201,4750.1,4747.5,5.043]
[1755139082758,2.68606121,4750.0,4747.6,4.36074]
[1755139082988,0.19549201,4749.9,4747.6,4.36074]
[1755139083968,0.4697,4749.8,4747.6,4.36074]
[1755139084972,0.4585,4749.7,4747.6,4.36074]
[1755139085498,0.4585,4749.7,4747.7,11.43]
[1755139085718,0.26860612,4749.6,4747.8,0.41806]
[1755139085887,0.26860612,4749.6,4747.9,11.43]
[1755139086720,0.4697,4749.5,4747.9,11.43]
[1755139087502,0.4585,4749.7,4747.9,11.43]
[1755139089504,0.4697,4749.6,4747.9,11.43]
[1755139089702,1.54282,4749.5,4747.9,11.43]
[1755139091304,1.54282,4749.5,4748.0,11.2197]
[1755139091515,1.54282,4749.5,4748.1,3.659]
[1755139092399,1.54282,4749.5,4748.0,11.2197]
[1755139092604,1.54282,4749.5,4748.1,8.694]
[1755139092806,0.247102,4749.4,4748.1,8.694]
[1755139093725,0.4697,4750.2,4748.2,11.3701]
[1755139094098,0.4697,4750.2,4748.3,11.2197]
[1755139094345,0.4697,4750.2,4748.4,8.688]
[1755139094834,0.4697,4750.2,4748.5,4.29]
[1755139094835,0.4585,4750.1,4748.5,4.29]
[1755139095000,0.4585,4750.1,4748.5,7.931]
[1755139095198,0.4697,4750.0,4748.5,7.931]
[1755139095400,0.4585,4749.9,4748.6,3.644]
[1755139095617,1.54282,4749.8,4748.6,3.644]
[1755139095908,0.9282,4749.7,4748.6,3.644]
[1755139096115,1.12441772,4749.7,4748.6,3.644]
[1755139096291,14.5,4749.6,4748.6,3.644]
[1755139096497,0.64834145,4749.5,4748.6,3.644]
[1755139096698,37.56526034,4749.3,4748.6,3.644]
[1755139096898,1.57654145,4749.2,4748.6,3.644]
[1755139097121,15.4282,4749.1,4748.6,3.644]
[1755139097315,2.47102,4749.0,4748.6,3.644]
[1755139097908,0.9282,4748.9,4748.6,3.644]
[1755139098338,0.9282,4748.8,4748.6,3.644]
[1755139098500,0.9282,4748.7,4748.6,3.644]
[1755139100531,1.54282,4749.0,4748.6,3.644]
[1755139100532,0.19628699,4748.9,4748.6,3.644]
[1755139100831,0.4585,4750.5,4748.7,0.1504]
[1755139101515,0.4328,4750.4,4748.7,0.1504]
[1755139101825,0.4328,4750.4,4748.4,5.045]
[1755139101826,0.4328,4750.4,4748.8,3.634]
[1755139102128,14.5,4750.8,4748.9,3.7844]
[1755139102431,1.53899,4750.7,4749.0,3.633]
[1755139102609,1.97179,4750.7,4749.0,3.633]
[1755139103312,0.8899,4750.6,4749.0,3.633]
[1755139103702,0.8899,4750.5,4749.0,3.633]
[1755139104026,0.8899,4750.4,4749.0,3.633]
[1755139104223,0.4571,4750.4,4749.0,3.633]
[1755139104458,0.4328,4750.3,4749.0,3.633]
[1755139105246,0.4571,4750.2,4749.0,3.633]
[1755139105450,14.9328,4750.1,4749.0,3.633]
[1755139105659,1.53899,4750.0,4749.0,3.633]
[1755139106845,37.56526034,4751.4,4749.0,3.633]
[1755139106846,0.8899,4750.8,4749.0,3.633]
[1755139107634,0.4328,4750.7,4749.0,3.633]
[1755139107952,0.4571,4750.6,4749.0,3.633]
[1755139108167,0.4328,4750.5,4749.1,3.621]
[1755139108325,0.4571,4750.4,4749.2,3.622]
[1755139108526,0.4571,4750.4,4749.3,3.622]
[1755139108726,0.4571,4750.4,4748.4,5.045]
[1755139108727,0.4571,4750.4,4749.4,3.621]
[1755139109043,0.4571,4750.4,4748.4,5.045]
[1755139109044,0.4571,4750.4,4749.5,3.621]
[1755139109758,0.4328,4750.3,4749.5,3.621]
[1755139110128,0.4571,4750.4,4749.5,3.621]
[1755139110330,0.4328,4750.9,4749.5,3.9831]
[1755139110525,0.4328,4750.9,4749.5,3.621]
[1755139111539,0.4571,4750.8,4749.5,3.621]
[1755139111735,0.4328,4750.7,4749.5,3.621]
[1755139111945,0.4328,4750.7,4749.6,4.29]
[1755139112426,0.4328,4750.7,4749.7,4.29]
[1755139112629,0.4571,4750.6,4749.7,4.29]
[1755139113859,0.4571,4750.6,4748.4,5.045]
[1755139113860,0.4328,4750.5,4748.6,4.29]
[1755139114175,0.4571,4750.4,4748.7,3.605]
[1755139114331,0.4328,4750.3,4748.7,3.605]
[1755139114529,0.4571,4750.2,4748.7,3.605]
[1755139114733,0.4328,4750.1,4748.7,3.605]
[1755139114932,0.4571,4750.0,4748.7,3.605]
[1755139115349,0.4328,4749.9,4748.7,3.605]
[1755139115538,0.4571,4749.8,4748.7,3.605]
[1755139116037,0.4328,4749.7,4748.7,3.605]
[1755139116733,0.4571,4749.6,4748.7,3.605]
[1755139116937,0.4328,4749.5,4748.7,3.605]
[1755139117563,0.56523386,4750.8,4748.7,3.605]
[1755139117738,0.4328,4750.1,4748.7,3.605]
[1755139119569,0.4571,4750.0,4748.7,3.605]
[1755139120463,0.4328,4749.9,4748.7,3.605]
[1755139120651,0.4328,4749.9,4748.8,4.29]
[1755139121870,0.4328,4749.9,4748.7,3.605]
[1755139123663,0.4571,4749.8,4748.7,3.605]
[1755139123864,0.4328,4749.7,4748.7,3.605]
[1755139125478,0.4571,4749.6,4748.8,3.569]
[1755139125678,0.64875857,4750.4,4748.8,3.569]
[1755139125872,0.15386586,4750.3,4748.8,3.569]
[1755139126073,0.8899,4750.4,4748.8,3.569]
[1755139126272,0.8899,4750.4,4748.8,3.7194]
[1755139126462,0.8899,4750.4,4748.8,3.569]
[1755139126772,0.4328,4750.3,4748.8,3.569]
[1755139127147,1.20525398,4751.6,4748.9,0.1504]
[1755139127148,0.8899,4750.7,4748.9,0.1504]
[1755139127363,0.56523386,4751.7,4749.0,0.37194]
[1755139127571,0.8899,4751.1,4749.1,0.1504]
[1755139127872,0.4328,4751.0,4749.1,0.1504]
[1755139130150,0.4328,4751.5,4749.2,4.29]
[1755139130356,0.4328,4752.1,4749.3,4.4404]
[1755139130560,0.4328,4752.1,4749.5,21.255179]
[1755139130880,0.4328,4752.1,4749.7,3.117]
[1755139131178,0.4571,4752.4,4749.8,11.3701]
[1755139131476,0.8919,4752.4,4749.9,0.1504]
[1755139131677,0.8919,4752.4,4750.0,0.37194]
[1755139131980,0.8919,4752.4,4750.1,4.4404]
[1755139132185,0.4348,4752.3,4750.2,3.7074]
[1755139133466,0.4348,4752.3,4750.3,4.4404]
[1755139134657,0.4727,4752.2,4750.3,4.29]
[1755139134859,0.4348,4752.1,4750.4,0.56546]
[1755139135379,0.4727,4752.0,4750.4,0.56546]
[1755139135586,0.4348,4752.1,4750.4,0.56546]
[1755139135787,0.4348,4752.1,4750.5,0.1504]
[1755139135973,0.4348,4752.1,4750.6,5.043]
[1755139136166,0.4727,4752.0,4750.7,0.37194]
[1755139136360,0.4348,4751.9,4750.8,4.29]
[1755139136564,0.4727,4751.8,4750.9,3.546]
[1755139137786,0.4727,4751.8,4751.0,4.29]
[1755139137958,0.4348,4751.7,4751.0,4.29]
[1755139138156,0.4348,4751.7,4751.1,4.29]
[1755139138356,0.4348,4751.7,4750.9,3.546]
[1755139138357,0.4727,4751.6,4751.2,4.29]
[1755139138678,0.9075,4751.5,4750.9,3.546]
[1755139138865,0.9075,4751.4,4750.9,3.546]
[1755139139061,0.9075,4751.3,4750.9,3.546]
[1755139139387,0.9075,4751.2,4750.9,3.546]
[1755139139587,0.9075,4751.1,4750.9,3.546]
[1755139139776,0.9075,4751.0,4750.9,3.546]
[1755139141160,0.64815522,4753.0,4750.9,3.546]
[1755139141161,0.9075,4751.5,4750.9,3.546]
[1755139141360,0.9075,4751.4,4750.9,3.546]
[1755139141582,0.9075,4751.3,4750.9,3.546]
[1755139141764,2.66636111,4752.9,4750.9,3.546]
[1755139141765,0.9075,4751.2,4750.9,3.546]
[1755139141967,0.9075,4751.1,4750.9,3.546]
[1755139142170,0.9075,4751.0,4750.9,3.546]
[1755139145289,0.9075,4751.0,4749.1,5.043]
[1755139145490,0.9075,4750.9,4749.1,5.043]
[1755139145793,0.9075,4750.8,4749.1,5.043]
[1755139145965,0.9075,4750.8,4749.2,0.6547]
[1755139146472,0.4348,4750.7,4749.3,3.523]
[1755139146672,0.9075,4750.7,4749.3,3.523]
[1755139146876,0.9075,4750.7,4749.4,3.522]
[1755139147077,0.9075,4750.6,4749.4,3.522]
[1755139147282,0.9075,4750.5,4749.4,3.522]
[1755139147481,0.9075,4750.4,4749.4,3.522]
[1755139147688,0.9075,4750.3,4749.4,3.522]
[1755139147889,0.9075,4750.2,4749.4,3.522]
[1755139148089,0.9075,4750.1,4749.4,3.522]
[1755139148388,0.9075,4750.0,4749.4,3.522]
[1755139148571,1.44920305,4750.8,4749.4,3.522]
[1755139148774,0.9075,4749.9,4749.5,3.52]
[1755139148978,0.9075,4749.8,4749.1,5.043]
[1755139149166,0.9075,4749.7,4749.1,5.043]
[1755139149366,0.4348,4749.6,4749.1,5.043]
[1755139149587,0.9075,4749.6,4749.1,5.043]
[1755139149969,0.9075,4749.5,4749.1,5.043]
[1755139150170,0.9075,4749.4,4749.2,3.52]
[1755139150371,0.9075,4749.3,4749.2,3.52]
[1755139153073,0.9075,4749.6,4749.2,3.52]
[1755139153268,0.19572375,4750.3,4749.2,3.52]
[1755139153470,0.9075,4749.5,4749.2,3.52]
[1755139153668,0.9075,4749.4,4749.2,3.52]
[1755139153984,1.21198387,4750.9,4749.2,3.52]
[1755139153985,0.9075,4749.3,4749.2,3.52]
[1755139156068,0.9075,4749.3,4747.6,0.1376]
[1755139156267,0.9075,4749.3,4748.1,5.045]
[1755139156967,0.4348,4749.7,4748.1,5.045]
[1755139157483,0.4348,4749.7,4748.2,3.502]
[1755139158702,0.4727,4749.6,4748.2,3.502]
[1755139159068,0.4348,4749.5,4748.2,3.502]
[1755139160771,0.19559751,4750.2,4748.2,3.502]
[1755139160972,3.496,4752.0,4748.2,3.502]
[1755139160973,0.9075,4750.0,4748.2,3.502]
[1755139161173,0.9075,4750.0,4748.3,0.1376]
[1755139163001,0.9341,4750.8,4748.7,17.34212428]
[1755139163207,0.9341,4750.8,4748.8,3.6246]
[1755139164075,0.4846,4750.8,4748.9,0.1376]
[1755139164378,0.4495,4750.7,4748.9,0.1376]
[1755139169481,14.5,4750.6,4748.9,0.1376]
[1755139169820,0.9341,4750.5,4749.0,3.472]
[1755139169985,1.54341,4750.4,4749.1,3.472]
[1755139170175,1.54341,4750.4,4748.1,22.38712428]
[1755139170176,0.4846,4750.9,4749.2,7.76]
[1755139170380,14.9495,4750.8,4749.3,3.469]
[1755139170607,14.5,4750.8,4749.3,3.469]
[1755139170806,0.9341,4750.7,4749.3,3.469]
[1755139170977,1.54341,4750.6,4749.3,3.469]
[1755139171181,0.9341,4750.5,4749.3,3.469]
[1755139171403,14.5,4750.4,4749.3,3.469]
[1755139171602,0.9341,4750.3,4749.3,3.469]
[1755139172192,0.4495,4750.2,4749.3,3.469]
[1755139172587,0.4846,4750.1,4749.3,3.469]
[1755139172782,0.4495,4750.0,4748.7,4.29]
[1755139173112,0.4846,4749.9,4748.8,3.466]
[1755139173312,0.4495,4749.8,4748.7,4.29]
[1755139173483,2.48619297,4749.7,4748.9,3.466]
[1755139173683,0.9341,4749.6,4749.0,3.466]
[1755139173879,14.5,4749.5,4749.1,3.466]
[1755139174124,0.9341,4749.4,4749.1,3.466]
[1755139174416,2.11785522,4749.4,4749.1,3.466]
[1755139174720,0.9341,4749.3,4749.1,3.466]
[1755139174899,14.5,4749.2,4749.1,3.466]
[1755139175783,0.9341,4750.4,4749.1,3.466]
[1755139176308,14.5,4750.3,4749.1,3.466]
[1755139177024,0.9341,4750.4,4749.1,3.466]
[1755139177025,0.4846,4750.4,4749.1,3.466]
[1755139177313,0.4846,4750.4,4749.2,0.36036]
[1755139177314,0.4495,4750.3,4749.2,0.36036]
[1755139177489,0.4495,4750.3,4749.1,3.466]
[1755139179186,0.4846,4751.2,4749.3,17.34212428]
[1755139179385,0.4846,4751.2,4749.4,0.1376]
[1755139179600,14.5,4751.1,4749.4,0.1376]
[1755139180594,0.4495,4751.6,4749.4,0.1376]
[1755139180798,0.4495,4751.6,4749.8,17.34212428]
[1755139181129,14.9495,4751.6,4749.9,3.6036]
[1755139181531,15.4341,4751.6,4749.9,3.6036]
[1755139182633,14.5,4751.6,4749.9,3.6036]
[1755139182934,14.5,4751.6,4750.0,0.1376]
[1755139183427,0.9341,4751.5,4750.0,0.1376]
[1755139184315,0.4495,4751.4,4750.0,0.1376]
[1755139184497,0.4495,4751.4,4749.9,3.466]
[1755139184700,0.4846,4751.3,4750.0,0.36036]
[1755139185098,0.4495,4751.2,4750.0,0.36036]
[1755139186100,0.9341,4751.7,4750.0,0.36036]
[1755139186301,0.9341,4751.7,4750.1,0.396396]
[1755139186622,14.9495,4751.6,4750.1,0.396396]
[1755139186798,0.4846,4751.5,4750.1,0.396396]
[1755139187204,0.9341,4751.5,4750.1,0.396396]
[1755139187428,0.9341,4751.5,4748.1,5.045]
[1755139187429,0.9341,4751.5,4748.7,0.1376]
[1755139187631,0.9341,4751.4,4748.8,3.464]
[1755139188010,0.9341,4751.3,4748.8,3.464]
[1755139188241,3.03522725,4751.2,4748.8,3.464]
[1755139188531,1.13002636,4751.1,4748.8,3.464]
[1755139188831,14.5,4751.0,4748.8,3.464]
[1755139189005,0.9341,4750.9,4748.8,3.464]
[1755139189425,0.9341,4750.8,4748.8,3.464]
[1755139189649,14.9495,4750.7,4748.9,0.1376]
[1755139190130,14.5,4750.7,4748.9,0.1376]
[1755139190427,0.9341,4750.6,4748.9,0.1376]
[1755139191910,0.4393,4751.3,4749.0,37.52688422]
[1755139192216,0.4393,4751.3,4749.2,7.854948]
[1755139192433,0.4393,4751.3,4749.3,0.1376]
[1755139192623,0.4393,4751.3,4749.4,4.29]
[1755139192824,0.4816,4751.2,4749.5,7.754]
[1755139193021,0.4393,4751.1,4749.6,0.3464]
[1755139193223,0.4816,4751.0,4749.6,0.3464]
[1755139193413,0.4393,4750.9,4749.6,0.3464]
[1755139193613,0.4393,4750.9,4749.5,3.464]
[1755139193614,0.4816,4750.8,4749.5,3.464]
[1755139193814,0.4393,4750.7,4749.5,3.464]
[1755139194210,0.4816,4750.6,4749.5,3.464]
[1755139194409,0.4393,4750.5,4749.5,3.464]
[1755139194628,0.4816,4750.4,4749.5,3.464]
[1755139194837,0.9209,4750.9,4749.6,5.043]
[1755139195041,0.4393,4750.6,4749.6,5.043]
[1755139195338,0.4816,4750.5,4749.6,5.043]
[1755139195539,0.4393,4750.4,4749.6,5.043]
[1755139196241,0.4816,4750.3,4749.6,5.043]
[1755139196443,0.4393,4750.2,4749.6,5.043]
[1755139199213,0.4393,4750.2,4749.6,9.333]
[1755139199924,0.4393,4750.2,4749.7,4.29]
[1755139200327,0.9209,4750.1,4749.6,5.043]
[1755139200520,14.5,4750.8,4749.6,5.043]
[1755139200521,0.9209,4750.0,4749.6,5.043]
[1755139200725,0.4816,4749.9,4749.6,5.043]
[1755139201041,0.9209,4749.9,4749.6,5.043]
[1755139201444,1.45,4750.7,4749.6,5.043]
[1755139201738,0.9209,4749.8,4749.6,5.043]
[1755139201947,0.9209,4749.7,4749.6,5.043]
[1755139202145,0.9209,4750.4,4749.6,5.043]
[1755139202444,0.9209,4750.3,4749.6,5.043]
[1755139202748,1.17249,4750.2,4749.6,5.043]
[1755139202924,0.25159,4750.2,4749.6,5.043]
[1755139203249,0.9209,4750.1,4749.6,5.043]
[1755139203441,0.9209,4750.0,4749.6,5.043]
[1755139203617,0.25159,4750.2,4749.6,5.043]
[1755139203818,0.9209,4750.1,4749.6,5.043]
[1755139204020,0.9209,4750.0,4749.6,5.043]
[1755139204243,0.9209,4749.9,4749.6,5.043]
[1755139204548,0.9209,4749.8,4749.6,5.043]
[1755139204848,0.4393,4750.2,4749.6,5.043]
[1755139205349,14.5,4750.8,4749.6,5.043]
[1755139205350,0.4816,4750.8,4749.6,5.043]
[1755139206232,0.19634901,4751.3,4749.6,5.043]
[1755139206433,0.4393,4751.1,4749.7,11.2197]
[1755139206641,0.4816,4751.0,4749.7,11.2197]
[1755139206826,0.4393,4750.9,4749.7,11.2197]
[1755139207231,0.4816,4751.0,4749.7,11.2197]
[1755139207429,0.4393,4751.0,4749.7,11.2197]
[1755139207637,0.9209,4751.2,4749.7,11.2197]
[1755139208516,0.4393,4751.1,4749.7,11.2197]
[1755139208721,0.9209,4751.1,4749.7,11.2197]
[1755139209140,0.4816,4751.2,4749.7,11.2197]
[1755139209457,0.4816,4751.2,4749.8,0.1376]
[1755139209654,0.4393,4751.6,4749.9,14.6807]
[1755139209825,0.4393,4751.6,4750.0,0.1376]
[1755139211122,0.4816,4751.5,4750.0,0.1376]
[1755139214158,0.4393,4751.6,4750.0,0.1376]
[1755139214960,0.4393,4751.6,4750.1,11.2197]
[1755139215129,0.4393,4751.6,4750.2,14.6797]
[1755139215462,0.4393,4751.6,4750.3,3.46]
[1755139217452,0.4816,4751.5,4750.3,3.46]
[1755139217632,0.4393,4751.4,4750.3,3.46]
[1755139217836,0.4393,4751.4,4750.4,0.346]
[1755139220361,17.8159075,4751.3,4750.3,3.46]
[1755139220558,1.11730955,4751.2,4750.3,3.46]
[1755139220951,0.9209,4751.1,4750.3,3.46]
[1755139221349,0.19640955,4751.2,4750.3,3.46]
[1755139221554,0.9293,4751.0,4750.3,3.46]
[1755139221862,1.75307171,4751.1,4750.3,3.46]
[1755139221863,0.9293,4750.9,4750.3,3.46]
[1755139222060,0.9293,4750.8,4750.3,3.46]
[1755139222261,0.9293,4750.7,4750.3,3.46]
[1755139222455,0.9293,4750.6,4750.3,3.46]
[1755139222772,0.9293,4750.5,4750.3,3.46]
[1755139223070,0.9293,4750.4,4750.3,3.46]
[1755139225373,0.4331,4751.1,4750.3,3.46]
[1755139225786,0.4962,4751.3,4750.3,3.46]
[1755139225978,0.4962,4751.3,4750.4,0.346]
[1755139228252,0.4331,4751.5,4750.4,0.346]
[1755139234973,0.4962,4751.4,4750.4,0.346]
[1755139235381,0.4331,4751.3,4750.4,0.346]
[1755139237045,0.4962,4751.2,4750.3,3.46]
[1755139237249,0.4331,4751.1,4750.3,3.46]
[1755139237449,0.4962,4751.0,4750.3,3.46]
[1755139237668,0.4331,4750.9,4750.3,3.46]
[1755139237869,0.4962,4750.8,4750.3,3.46]
[1755139238064,0.9293,4750.7,4750.3,3.46]
[1755139238474,0.4331,4751.3,4750.3,3.806]
[1755139238668,0.4331,4751.3,4750.3,3.46]
[1755139239466,0.4962,4751.2,4750.3,3.46]
[1755139239879,0.4331,4751.1,4750.3,3.46]
[1755139240079,0.4962,4751.0,4750.3,3.46]
[1755139240283,0.4331,4750.9,4750.3,3.46]
[1755139240577,0.4962,4750.8,4750.4,3.452]
[1755139240794,0.4331,4750.7,4750.5,3.452]
[1755139240964,0.4962,4750.6,4750.5,3.452]
[1755139241151,0.9293,4750.6,4750.5,3.452]
[1755139243690,0.9293,4750.6,4750.5,8.495]
[1755139245560,0.9293,4751.0,4750.5,8.495]
[1755139245766,0.9293,4750.9,4750.5,8.495]
[1755139245967,0.19648144,4751.9,4750.5,8.495]
[1755139246168,1.75307889,4751.8,4750.5,8.495]
[1755139246368,0.9293,4751.7,4750.5,8.495]
[1755139246589,1.12578144,4751.7,4750.5,8.495]
[1755139246760,0.9293,4751.6,4750.5,8.495]
[1755139246961,0.19648144,4751.7,4750.5,8.495]
[1755139247159,0.9293,4751.5,4750.5,8.495]
[1755139247463,0.9293,4751.4,4750.5,8.495]
[1755139247663,0.9293,4751.3,4750.5,8.495]
[1755139247981,0.9293,4751.2,4750.5,8.495]
[1755139248176,1.97367785,4751.6,4750.5,8.495]
[1755139248499,1.12666779,4751.5,4750.5,8.495]
[1755139248695,1.3232347,4751.5,4750.5,8.495]
[1755139248871,0.3939347,4751.5,4750.5,8.495]
[1755139249071,0.9293,4751.4,4750.5,8.495]
[1755139249274,0.4331,4751.3,4750.5,8.495]
[1755139249472,0.75661456,4751.2,4750.5,8.495]
[1755139249692,0.4331,4751.1,4750.5,8.495]
[1755139250072,0.4962,4751.0,4750.5,8.495]
[1755139250273,0.26041456,4751.2,4750.5,8.495]
[1755139250480,0.9293,4750.9,4750.5,8.495]
[1755139250818,0.9293,4750.8,4750.5,8.495]
[1755139250999,0.9293,4750.7,4750.5,8.495]
[1755139251173,0.9293,4750.7,4750.6,4.29]
[1755139252263,0.4628,4751.0,4750.6,4.29]
[1755139252469,0.39400056,4751.5,4750.6,4.29]
[1755139252782,0.9197,4751.6,4750.6,4.29]
[1755139253869,0.19661466,4752.7,4750.6,4.29]
[1755139254193,0.9197,4751.8,4750.7,4.29]
[1755139254902,0.9197,4751.8,4750.5,8.495]
[1755139256703,0.6496705,4752.7,4750.5,8.495]
[1755139256906,0.4628,4751.7,4750.5,8.495]
[1755139257104,0.9197,4751.7,4750.5,8.495]
[1755139258486,0.4628,4752.0,4750.5,8.495]
[1755139258808,0.4628,4752.0,4750.6,0.1376]
[1755139262719,0.4628,4752.0,4750.7,3.444]
[1755139262896,0.4569,4751.9,4750.7,3.444]
[1755139263217,0.4628,4751.8,4750.7,3.444]
[1755139263416,0.4569,4751.7,4750.7,3.444]
[1755139263585,0.4628,4751.6,4750.7,3.444]
[1755139263780,0.4569,4751.5,4750.7,3.444]
[1755139265194,0.4628,4751.6,4750.7,3.444]
[1755139266088,0.4628,4751.6,4750.5,5.043]
[1755139266089,0.4569,4751.5,4750.8,3.442]
[1755139266283,0.4628,4751.4,4750.8,3.442]
[1755139266488,0.4569,4751.3,4750.8,3.442]
[1755139266713,0.9197,4751.2,4750.5,5.043]
[1755139266888,0.9197,4751.1,4750.6,3.442]
[1755139267088,0.9197,4751.0,4750.6,3.442]
[1755139267288,0.9197,4750.9,4750.5,5.043]
[1755139267502,0.9197,4750.8,4750.6,3.442]
[1755139267696,0.9197,4750.7,4750.6,3.442]
[1755139268188,0.9197,4750.7,4750.5,5.043]
[1755139268388,0.9197,4750.6,4748.9,2.622]
[1755139268684,0.9197,4750.5,4750.0,5.042]
[1755139268914,0.9197,4750.4,4750.1,3.441]
[1755139269093,0.9197,4750.3,4750.1,3.441]
[1755139269414,0.9197,4750.2,4750.1,3.441]
[1755139269997,18.2540075,4750.2,4750.0,5.042]
[1755139270195,18.2540075,4750.2,4750.1,3.441]
[1755139270196,17.3343075,4750.2,4750.1,3.441]
[1755139270489,17.53073503,4750.2,4750.1,3.441]
[1755139270688,20.20350853,4750.2,4750.1,3.441]
[1755139271118,20.65594327,4750.2,4750.1,3.441]
[1755139271417,20.20350853,4750.2,4750.1,3.441]
[1755139271624,20.20350853,4750.2,4748.9,5.043]
[1755139271914,17.3343075,4749.6,4749.5,0.10966613]
[1755139272118,19.98743825,4749.6,4749.5,0.10966613]
[1755139272491,19.98743825,4749.6,4748.9,5.043]
[1755139272694,0.9197,4749.5,4749.0,3.44]
[1755139272914,0.9197,4749.4,4749.0,3.44]
[1755139273116,19.06773825,4749.6,4749.0,3.44]
[1755139273288,0.9197,4749.3,4749.0,3.44]
[1755139273490,1.92282287,4749.5,4749.0,3.44]
[1755139273725,0.9197,4749.2,4749.0,3.44]
[1755139273927,0.9197,4749.1,4749.0,3.44]
[1755139274104,0.9197,4749.1,4748.9,5.043]
[1755139274423,17.3343075,4749.9,4749.0,3.44]
[1755139275103,0.9197,4749.8,4749.0,3.44]
[1755139275305,1.82540075,4749.7,4749.0,3.44]
[1755139275621,0.9197,4749.6,4748.9,5.043]
[1755139275829,0.9197,4749.6,4749.1,3.439]
[1755139275995,1.82540075,4749.7,4749.1,3.439]
[1755139276195,0.9197,4749.5,4749.1,3.439]
[1755139276519,1.19421007,4749.4,4749.1,3.439]
[1755139276822,0.9197,4749.3,4749.1,3.439]
[1755139277020,17.3343075,4750.3,4749.1,3.439]
[1755139277224,0.4569,4749.7,4749.1,3.439]
[1755139277425,0.4628,4749.6,4749.1,3.439]
[1755139277597,0.9197,4749.5,4749.2,3.439]
[1755139277804,2.74510075,4749.4,4749.2,3.439]
[1755139278118,0.9197,4749.3,4748.9,5.043]
[1755139278297,0.9197,4749.3,4749.0,3.439]
[1755139278502,0.9197,4749.2,4748.9,5.043]
[1755139278828,2.92764083,4749.1,4748.9,5.043]
[1755139279050,2.00794083,4749.1,4749.0,3.438]
[1755139279510,2.92764083,4749.1,4749.0,3.438]
[1755139280627,2.92764083,4749.1,4747.7,5.045]
[1755139280847,17.3343075,4748.5,4747.7,5.045]
[1755139281026,0.9197,4748.4,4747.7,5.045]
[1755139281420,0.9168,4748.3,4747.7,5.045]
[1755139281624,17.3343075,4748.5,4747.7,5.045]
[1755139281805,0.9168,4748.2,4747.8,3.438]
[1755139282000,1.82511075,4748.1,4747.8,3.438]
[1755139282418,0.9168,4748.0,4747.8,3.438]
[1755139282601,0.4615,4748.3,4747.8,3.438]
[1755139282803,0.9168,4748.2,4747.8,3.438]
[1755139283039,17.3343075,4749.0,4747.8,3.438]
[1755139283201,1.73343075,4748.9,4747.8,3.438]
[1755139283408,2.65023075,4748.9,4747.8,3.438]
[1755139283629,0.9168,4748.8,4747.8,3.438]
[1755139284133,0.4615,4748.7,4747.8,3.438]
[1755139284438,0.9168,4748.7,4747.8,3.438]
[1755139284661,0.9168,4748.7,4747.7,5.045]
[1755139284662,1.99845383,4748.6,4747.9,3.437]
[1755139284816,0.9168,4748.5,4747.9,3.437]
[1755139285015,0.9168,4748.5,4747.7,5.045]
[1755139285226,0.9168,4748.4,4747.8,3.437]
[1755139285519,2.02495613,4748.3,4747.8,3.437]
[1755139285733,0.9168,4748.2,4747.8,3.437]
[1755139286040,0.9168,4748.2,4747.7,5.045]
[1755139286242,2.02495613,4748.3,4747.8,3.437]